bitfinex-derivatives/quotes_BNBF0:USTF0_20250609
["timestamp","ask_amount","ask_price","bid_price","bid_amount"]
[1749478188702,1.07634162,653.52,652.41,0.30655569]
[1749478192701,0.851,653.51,652.41,0.30655569]
[1749478199608,0.851,653.51,652.43,3.78045252]
[1749478199807,0.851,653.51,652.45,0.30653689]
[1749478211420,0.851,653.51,652.5,3.78045252]
[1749478211619,0.851,653.51,652.52,0.30650401]
[1749478211820,0.851,653.51,652.54,3.78045252]
[1749478212116,0.851,653.51,652.56,0.30648522]
[1749478214916,0.851,653.51,652.56,4.08693774]
[1749478215920,0.851,653.51,652.58,3.78045252]
[1749478216118,0.851,653.51,652.6,0.30646644]
[1749478219524,0.851,653.51,652.71,3.78045252]
[1749478219820,0.851,653.51,652.72,0.30641009]
[1749478222722,0.26640842,653.73,652.72,0.30641009]
[1749478224925,0.26640842,653.73,652.72,4.08686261]
[1749478225323,0.26640842,653.73,652.72,0.30641009]
[1749478225728,0.26640842,653.73,652.72,4.08686261]
[1749478225928,0.972,653.72,652.72,4.08686261]
[1749478226229,0.972,653.72,652.72,0.30641009]
[1749478228036,0.972,653.72,652.72,4.08686261]
[1749478229440,0.972,653.72,652.73,3.78045252]
[1749478229640,0.972,653.72,652.74,0.30640071]
[1749478232041,0.972,653.72,652.77,3.78045252]
[1749478232338,0.972,653.72,652.78,0.30638193]
[1749478234241,0.972,653.72,652.78,4.08683445]
[1749478234844,0.972,653.72,652.81,3.78045252]
[1749478235140,0.972,653.72,652.82,0.30636316]
[1749478236646,0.972,653.72,652.83,3.78045252]
[1749478236843,0.972,653.72,652.84,0.30635377]
[1749478252855,0.26640842,653.73,652.84,0.30635377]
[1749478256768,0.914,653.72,652.84,0.30635377]
[1749478281786,0.914,653.72,652.9,3.78045252]
[1749478282090,0.914,653.72,652.91,4.08677345]
[1749478282291,0.914,653.72,652.92,0.30631624]
[1749478292802,0.26629121,653.86,652.92,0.30631624]
[1749478296805,0.957,653.85,652.92,0.30631624]
[1749478302905,0.957,653.85,652.98,3.78045252]
[1749478303105,0.957,653.85,652.99,0.3062834]
[1749478305510,0.957,653.85,652.99,4.08673592]
[1749478306910,0.957,653.85,652.99,0.3062834]
[1749478317221,0.957,653.85,652.99,4.08673592]
[1749478317920,0.957,653.85,653.02,3.78045252]
[1749478318217,0.957,653.85,653.03,0.30626464]
[1749478321217,0.957,653.85,653.03,4.08671716]
[1749478322118,0.957,653.85,653.04,3.78045252]
[1749478322618,0.957,653.85,653.05,0.30625526]
[1749478326121,0.957,653.85,653.05,4.08670778]
[1749478326722,0.957,653.85,653.05,0.30625526]
[1749478327126,0.957,653.85,653.06,3.78045252]
[1749478327423,0.957,653.85,653.07,0.30624588]
[1749478329922,0.957,653.85,653.09,3.78045252]
[1749478330123,0.957,653.85,653.1,0.30623181]
[1749478338440,0.957,653.85,653.1,4.08668433]
[1749478338838,0.957,653.85,653.1,0.30623181]
[1749478339439,0.957,653.85,653.1,4.08668433]
[1749478339935,0.957,653.85,653.13,3.78045252]
[1749478340139,0.957,653.85,653.14,0.30621306]
[1749478345740,0.2661802,654.21,653.14,0.30621306]
[1749478349248,0.819,654.2,653.14,0.30621306]
[1749478370161,0.26612626,654.32,653.14,0.30621306]
[1749478372766,0.847,654.31,653.14,0.30621306]
[1749478374467,0.847,654.31,653.14,4.08666558]
[1749478375872,0.847,654.31,653.2,3.78045252]
[1749478376069,0.847,654.31,653.22,0.30617556]
[1749478376272,0.847,654.31,653.26,3.78045252]
[1749478376572,0.847,654.31,653.28,0.30614744]
[1749478376769,0.847,654.31,653.28,4.08659996]
[1749478377571,0.847,654.31,653.3,3.78045252]
[1749478378070,0.847,654.31,653.32,0.30612869]
[1749478378474,0.847,654.31,653.38,3.78045252]
[1749478378667,0.847,654.31,653.4,0.30609121]
[1749478379370,0.847,654.31,653.4,4.08654373]
[1749478380275,0.847,654.31,653.46,3.78045252]
[1749478380472,0.847,654.31,653.47,0.30605842]
[1749478406997,0.26612626,654.32,653.47,0.30605842]
[1749478409801,1.18,654.31,653.47,0.30605842]
[1749478423809,0.26607335,654.4,653.47,0.30605842]
[1749478425811,1.09930276,654.5,653.47,0.30605842]
[1749478426008,0.26603267,654.48,653.47,0.30605842]
[1749478426607,1.195,654.47,653.47,0.30605842]
[1749478433214,1.195,654.47,653.54,3.78045252]
[1749478433517,1.195,654.47,653.55,0.30602096]
[1749478434113,1.195,654.47,653.55,4.08647348]
[1749478434515,1.195,654.47,653.57,3.78045252]
[1749478434714,1.195,654.47,653.58,0.30600691]
[1749478435917,1.195,654.47,653.58,4.08645943]
[1749478436417,1.195,654.47,653.59,3.78045252]
[1749478436714,1.195,654.47,653.6,0.30599755]
[1749478437714,1.195,654.47,653.6,4.08645007]
[1749478438218,1.195,654.47,653.6,0.30599755]
[1749478441321,1.195,654.47,653.64,3.78045252]
[1749478441521,1.195,654.47,653.65,0.30597414]
[1749478451630,0.26603267,654.48,653.65,0.30597414]
[1749478452432,0.26603267,654.48,653.65,4.08642666]
[1749478453233,0.26603267,654.48,653.65,0.30597414]
[1749478453634,0.26603267,654.48,653.65,4.08642666]
[1749478454130,0.26603267,654.48,653.66,3.78045252]
[1749478454435,1.367,654.47,653.67,0.30596478]
[1749478464539,1.367,654.47,653.67,4.0864173]
[1749478464941,1.367,654.47,653.68,3.78045252]
[1749478465142,1.367,654.47,653.69,0.30595542]
[1749478465338,1.367,654.47,653.69,4.08640794]
[1749478465641,1.367,654.47,653.7,0.30595074]
[1749478467742,1.367,654.47,653.73,3.78045252]
[1749478467940,1.367,654.47,653.74,0.30593202]
[1749478479650,1.367,654.47,653.76,3.78045252]
[1749478480149,1.367,654.47,653.75,3.78045252]
[1749478480349,1.367,654.47,653.75,4.08637986]
[1749478480747,1.367,654.47,653.76,0.30592266]
[1749478482951,1.367,654.47,653.76,4.08637518]
[1749478483351,1.367,654.47,653.76,0.30592266]
[1749478501966,0.26608861,654.3,653.76,0.30592266]
[1749478517482,1.065,654.29,653.76,0.30592266]
[1749478553618,1.1565834,654.45,653.76,0.30592266]
[1749478553915,1.1565834,654.48,653.76,0.30592266]
[1749478554512,0.26604284,654.49,653.76,0.30592266]
[1749478555215,0.26604284,654.49,653.22,0.26608861]
[1749478555216,1.1565834,654.48,653.22,0.26608861]
[1749478555417,1.1565834,654.47,653.23,0.30617087]
[1749478555615,1.1565834,654.46,653.23,0.30617087]
[1749478555826,1.1565834,654.48,653.23,0.30617087]
[1749478556117,1.098,654.45,653.23,0.30617087]
[1749478556316,1.1565834,654.44,653.23,0.30617087]
[1749478556520,1.1565834,654.43,653.23,0.30617087]
[1749478556818,1.1565834,654.42,653.23,0.30617087]
[1749478557015,1.1565834,654.44,653.23,0.30617087]
[1749478557220,1.1565834,654.43,653.23,0.30617087]
[1749478557517,1.1565834,654.44,653.23,0.30617087]
[1749478557722,1.1565834,654.43,653.23,0.30617087]
[1749478557921,1.1565834,654.42,653.23,0.30617087]
[1749478558117,1.1565834,654.44,653.23,0.30617087]
[1749478558317,1.1565834,654.43,653.23,0.30617087]
[1749478558518,1.1565834,654.44,653.23,0.30617087]
[1749478558919,1.098,654.45,653.23,0.30617087]
[1749478559521,2.2545834,654.45,653.23,0.30617087]
[1749478559723,1.1565834,654.44,653.23,0.30617087]
[1749478560121,1.098,654.45,653.23,0.30617087]
[1749478571024,2.25055187,654.45,653.23,0.30617087]
[1749478571323,1.15255187,654.44,653.23,0.30617087]
[1749478571626,1.15158121,654.44,653.23,0.30617087]
[1749478571827,1.098,654.45,653.23,0.30617087]
[1749478577229,2.24958121,654.45,653.23,0.30617087]
[1749478577427,1.098,654.45,653.23,0.30617087]
[1749478581526,0.26611303,654.16,653.31,0.26611303]
[1749478581729,0.26611303,654.16,653.32,0.30612869]
[1749478586033,1.098,654.45,653.32,0.30612869]
[1749478586238,0.26607234,654.29,653.32,0.30612869]
[1749478597143,1.408,654.28,653.32,0.30612869]
[1749478600649,1.408,654.28,653.34,3.78045252]
[1749478600950,1.408,654.28,653.35,0.30611463]
[1749478604053,1.408,654.28,653.38,3.78045252]
[1749478604255,1.408,654.28,653.39,0.30609589]
[1749478630578,1.408,654.28,653.49,3.78045252]
[1749478631475,1.408,654.28,653.45,3.78045252]
[1749478632478,1.408,654.28,653.39,4.08654841]
[1749478632781,1.408,654.28,653.4,3.78045252]
[1749478632978,1.408,654.28,653.41,0.30608653]
[1749478650595,1.408,654.28,653.5,3.78045252]
[1749478650793,1.408,654.28,653.51,0.30603969]
[1749478653290,1.408,654.28,653.55,3.78045252]
[1749478653492,1.408,654.28,653.56,0.30601628]
[1749478656194,0.26604793,654.4,653.56,0.30601628]
[1749478658698,1.15,654.39,653.56,0.30601628]
[1749478666306,1.15,654.39,653.66,3.78045252]
[1749478666511,1.15,654.39,653.67,0.30596478]
[1749478668108,1.15,654.39,653.69,3.78045252]
[1749478668309,1.15,654.39,653.7,0.30595074]
[1749478695839,0.26604793,654.4,653.7,0.30595074]
[1749478699836,1.045,654.39,653.7,0.30595074]
[1749478705343,1.045,654.39,653.31,0.26611303]
[1749478705541,1.045,654.39,653.32,0.30612869]
[1749478733863,0.26604793,654.4,653.32,0.30612869]
[1749478735964,0.26604793,654.4,653.32,4.08658121]
[1749478736461,0.26604793,654.4,653.33,3.78045252]
[1749478736663,1.098,654.39,653.35,0.30611463]
[1749478737364,1.098,654.39,653.35,4.08656715]
[1749478739266,1.098,654.39,653.36,3.78045252]
[1749478739463,1.098,654.39,653.37,0.30610526]
[1749478740464,1.098,654.39,653.37,4.08655778]
[1749478741665,1.098,654.39,653.41,3.78045252]
[1749478741968,1.098,654.39,653.42,0.30608184]
[1749478742368,1.098,654.39,653.42,4.08653436]
[1749478743665,1.098,654.39,653.47,3.78045252]
[1749478743866,1.098,654.39,653.48,0.30605374]
[1749478785802,0.26604793,654.4,653.48,0.30605374]
[1749478787705,0.26604793,654.4,653.51,3.78045252]
[1749478787901,0.26604793,654.4,653.52,0.30603501]
[1749478788807,1.429,654.39,653.52,0.30603501]
[1749478791107,1.429,654.39,653.61,3.78045252]
[1749478791303,1.429,654.39,653.62,0.30598818]
[1749478802614,0.26604488,654.38,653.62,0.30598818]
[1749478816325,1.429,654.39,653.62,0.30598818]
[1749478820733,0.26601844,654.47,653.62,0.30598818]
[1749478823738,1.344,654.46,653.62,0.30598818]
[1749478826839,1.344,654.46,653.64,3.78045252]
[1749478827041,1.344,654.46,653.65,0.30597414]
[1749478832239,1.344,654.46,653.69,3.78045252]
[1749478832638,1.344,654.46,653.65,0.30597414]
[1749478838749,0.26601844,654.47,653.65,0.30597414]
[1749478842449,0.935,654.46,653.65,0.30597414]
[1749478861463,0.935,654.46,653.75,3.78045252]
[1749478864470,0.935,654.46,653.76,3.78045252]
[1749478866477,0.935,654.46,653.75,3.78045252]
[1749478866870,0.935,654.46,653.76,3.78045252]
[1749478868272,0.935,654.46,653.73,3.78045252]
[1749478870680,0.935,654.46,653.65,0.30597414]
[1749478885792,0.935,654.46,653.71,3.78045252]
[1749478885991,0.935,654.46,653.72,0.30594138]
[1749478886689,0.935,654.46,653.79,3.78045252]
[1749478887993,0.935,654.46,653.8,3.78045252]
[1749478891394,0.935,654.46,653.79,3.78045252]
[1749478891595,0.935,654.46,653.76,3.78045252]
[1749478892892,0.935,654.46,653.77,3.78045252]
[1749478893496,0.935,654.46,653.78,3.78045252]
[1749478894296,0.935,654.46,653.79,3.78045252]
[1749478895095,0.935,654.46,653.78,3.78045252]
[1749478895495,0.26601844,654.47,653.78,3.78045252]
[1749478895695,0.26601844,654.47,653.79,3.78045252]
[1749478896197,0.26601844,654.47,653.72,0.30594138]
[1749478899201,1.213,654.46,653.72,0.30594138]
[1749478915927,1.213,654.46,653.72,4.0863939]
[1749478916730,1.213,654.46,653.72,0.30594138]
[1749478926738,1.213,654.46,653.75,3.78045252]
[1749478927238,1.213,654.46,653.79,3.78045252]
[1749478931643,1.213,654.46,653.83,3.78045252]
[1749478933239,0.26599709,654.54,653.83,3.78045252]
[1749478935342,0.26599709,654.54,653.84,3.78045252]
[1749478936146,0.882,654.53,653.84,3.78045252]
[1749478937143,0.882,654.53,653.81,3.78045252]
[1749478938042,0.882,654.53,653.8,3.78045252]
[1749478938447,0.882,654.53,653.79,3.78045252]
[1749478939347,0.882,654.53,653.8,3.78045252]
[1749478939748,0.882,654.53,653.76,3.78045252]
[1749478940644,0.882,654.53,653.73,3.78045252]
[1749478940945,0.882,654.53,653.74,0.30593202]
[1749478941545,0.882,654.53,653.74,4.08638454]
[1749478941947,0.882,654.53,653.74,0.30593202]
[1749478946447,0.882,654.53,653.74,4.08638454]
[1749478947349,0.882,654.53,653.77,3.78045252]
[1749478947552,0.882,654.53,653.78,0.3059133]
[1749478947950,0.882,654.53,653.78,4.08636582]
[1749478948453,0.882,654.53,653.8,3.78045252]
[1749478948748,0.882,654.53,653.78,0.3059133]
[1749478956258,0.26599709,654.54,653.78,0.3059133]
[1749478959161,1.021,654.53,653.78,0.3059133]
[1749478969867,1.021,654.53,654.02,3.78045252]
[1749478970767,1.021,654.53,654.0,3.78045252]
[1749478971368,1.021,654.53,653.99,3.78045252]
[1749478971671,1.021,654.53,653.98,3.78045252]
[1749478971867,1.021,654.53,653.98,4.08627226]
[1749478972571,1.021,654.53,653.98,0.30581974]
[1749478981377,0.26593103,654.79,653.98,0.30581974]
[1749478983876,2.38784666,655.24,653.98,0.30581974]
[1749478984178,0.26581829,654.87,653.98,0.30581974]
[1749478985274,0.988,654.86,653.98,0.30581974]
[1749479009095,0.988,654.86,653.99,3.78045252]
[1749479009394,0.988,654.86,654.0,0.30581039]
[1749479010900,0.988,654.86,654.0,4.08626291]
[1749479011308,0.988,654.86,654.0,0.30581039]
[1749479013403,0.26581829,654.87,654.0,0.30581039]
[1749479015808,0.897,654.86,654.0,0.30581039]
[1749479036921,0.26581829,654.87,654.0,0.30581039]
[1749479039627,0.868,654.86,654.0,0.30581039]
[1749479047932,0.868,654.86,654.0,4.08626291]
[1749479048334,0.868,654.86,654.0,0.30581039]
[1749479050539,0.868,654.86,654.02,3.78045252]
[1749479050737,0.868,654.86,654.03,0.30579637]
[1749479053743,0.26581829,654.87,654.03,0.30579637]
[1749479056544,1.014,654.86,654.03,0.30579637]
[1749479082961,1.014,654.86,654.11,3.78045252]
[1749479083166,1.014,654.86,654.12,0.30575429]
[1749479107586,0.26583149,655.03,654.12,0.30575429]
[1749479111687,0.927,655.02,654.12,0.30575429]
[1749479115495,1.13700641,655.01,654.12,0.30575429]
[1749479115700,1.13700641,655.0,654.12,0.30575429]
[1749479115996,1.13700641,654.99,654.12,0.30575429]
[1749479116291,1.13700641,654.98,654.12,0.30575429]
[1749479116492,1.13700641,654.97,654.12,0.30575429]
[1749479116696,1.25759535,655.01,654.12,0.30575429]
[1749479116697,1.13700641,655.0,654.12,0.30575429]
[1749479116993,1.13700641,655.01,654.12,0.30575429]
[1749479117696,2.06400641,655.02,654.12,0.30575429]
[1749479118097,0.927,655.02,654.12,0.30575429]
[1749479118294,1.13700641,655.01,654.12,0.30575429]
[1749479118497,1.13700641,655.0,654.12,0.30575429]
[1749479118798,1.13700641,654.99,654.12,0.30575429]
[1749479119099,1.13700641,654.98,654.12,0.30575429]
[1749479119293,1.13700641,655.01,654.12,0.30575429]
[1749479119495,1.13700641,655.0,654.12,0.30575429]
[1749479119696,1.13700641,654.99,654.12,0.30575429]
[1749479119894,1.13700641,655.01,654.12,0.30575429]
[1749479120096,1.13700641,655.0,654.12,0.30575429]
[1749479120297,1.13700641,655.01,654.12,0.30575429]
[1749479120996,0.927,655.02,654.12,0.30575429]
[1749479125200,2.06400641,655.02,654.12,0.30575429]
[1749479125400,1.13700641,655.01,654.12,0.30575429]
[1749479125899,0.927,655.02,654.12,0.30575429]
[1749479128507,2.06400641,655.02,654.12,0.30575429]
[1749479128700,1.13700641,655.01,654.12,0.30575429]
[1749479129104,0.927,655.02,654.12,0.30575429]
[1749479130603,0.26583149,655.03,654.12,0.30575429]
[1749479134607,0.939,655.02,654.12,0.30575429]
[1749479135202,2.07600641,655.02,654.12,0.30575429]
[1749479135403,1.13700641,655.01,654.12,0.30575429]
[1749479135907,0.939,655.02,654.12,0.30575429]
[1749479138208,2.07600641,655.02,654.12,0.30575429]
[1749479140204,1.13700641,655.01,654.12,0.30575429]
[1749479140608,0.939,655.02,654.12,0.30575429]
[1749479142705,2.07600641,655.02,654.12,0.30575429]
[1749479143006,1.13700641,655.01,654.12,0.30575429]
[1749479143709,0.939,655.02,654.12,0.30575429]
[1749479145808,2.07600641,655.02,654.12,0.30575429]
[1749479146008,1.13700641,655.01,654.12,0.30575429]
[1749479146613,0.939,655.02,654.12,0.30575429]
[1749479155211,2.07332311,655.02,654.12,0.30575429]
[1749479156012,1.13432311,655.01,654.12,0.30575429]
[1749479156512,0.939,655.02,654.12,0.30575429]
[1749479159217,1.13432311,655.01,654.12,0.30575429]
[1749479159419,1.13432311,655.0,654.12,0.30575429]
[1749479159613,1.13432311,655.01,654.12,0.30575429]
[1749479159814,1.13432311,655.0,654.12,0.30575429]
[1749479160018,1.13432311,655.01,654.12,0.30575429]
[1749479160220,1.13432311,655.0,654.12,0.30575429]
[1749479160419,1.13432311,655.01,654.12,0.30575429]
[1749479160618,1.13432311,655.0,654.12,0.30575429]
[1749479160814,1.13432311,655.01,654.12,0.30575429]
[1749479161016,1.13432311,655.0,654.12,0.30575429]
[1749479161216,1.13432311,655.01,654.12,0.30575429]
[1749479161418,1.13432311,655.0,654.12,0.30575429]
[1749479161616,1.13432311,655.01,654.12,0.30575429]
[1749479161817,1.13432311,655.0,654.12,0.30575429]
[1749479162017,1.13432311,655.01,654.12,0.30575429]
[1749479162217,1.13432311,655.0,654.12,0.30575429]
[1749479162422,1.13432311,654.99,654.12,0.30575429]
[1749479162621,1.13432311,655.01,654.12,0.30575429]
[1749479162823,1.13432311,655.0,654.12,0.30575429]
[1749479163022,1.13432311,654.99,654.12,0.30575429]
[1749479163322,1.13432311,655.01,654.12,0.30575429]
[1749479163622,1.13432311,655.0,654.12,0.30575429]
[1749479163820,1.13432311,654.99,654.12,0.30575429]
[1749479164023,0.939,655.02,654.12,0.30575429]
[1749479164024,1.13432311,655.01,654.12,0.30575429]
[1749479164522,0.939,655.02,654.12,0.30575429]
[1749479165920,2.07332311,655.02,654.12,0.30575429]
[1749479166223,1.13432311,655.01,654.12,0.30575429]
[1749479166720,2.07332311,655.02,654.12,0.30575429]
[1749479167621,1.13432311,655.01,654.12,0.30575429]
[1749479167826,2.07332311,655.02,654.12,0.30575429]
[1749479168221,1.13432311,655.01,654.12,0.30575429]
[1749479168726,0.939,655.02,654.12,0.30575429]
[1749479172031,1.13805571,655.01,654.12,0.30575429]
[1749479172232,1.13805571,655.0,654.12,0.30575429]
[1749479172433,1.13805571,654.99,654.12,0.30575429]
[1749479172628,1.13805571,654.98,654.12,0.30575429]
[1749479172829,1.13805571,655.01,654.12,0.30575429]
[1749479173028,1.13805571,655.0,654.12,0.30575429]
[1749479173228,1.13805571,654.99,654.12,0.30575429]
[1749479173429,1.13805571,654.98,654.12,0.30575429]
[1749479173627,1.13805571,654.97,654.12,0.30575429]
[1749479173931,1.13805571,655.01,654.12,0.30575429]
[1749479174131,1.13805571,655.0,654.12,0.30575429]
[1749479174331,1.13805571,654.99,654.12,0.30575429]
[1749479174532,1.13805571,654.98,654.12,0.30575429]
[1749479174730,1.13805571,654.97,654.12,0.30575429]
[1749479174932,1.13805571,654.96,654.12,0.30575429]
[1749479175132,1.13805571,654.95,654.12,0.30575429]
[1749479175330,1.13805571,654.94,654.12,0.30575429]
[1749479175529,0.939,655.02,654.12,0.30575429]
[1749479175530,1.13805571,654.93,654.12,0.30575429]
[1749479175727,1.13805571,654.92,654.12,0.30575429]
[1749479175933,1.13805571,655.01,654.12,0.30575429]
[1749479176127,1.13805571,655.0,654.12,0.30575429]
[1749479176331,1.13805571,654.99,654.12,0.30575429]
[1749479176531,1.13805571,654.98,654.12,0.30575429]
[1749479176731,1.13805571,654.97,654.12,0.30575429]
[1749479176933,1.13805571,654.96,654.12,0.30575429]
[1749479177229,1.13805571,654.95,654.12,0.30575429]
[1749479177434,1.13805571,654.94,654.12,0.30575429]
[1749479177636,1.13805571,654.93,654.12,0.30575429]
[1749479177835,1.13805571,654.92,654.12,0.30575429]
[1749479178035,1.13805571,654.91,654.12,0.30575429]
[1749479178238,1.13805571,654.9,654.12,0.30575429]
[1749479178532,1.13805571,654.89,654.12,0.30575429]
[1749479178733,1.13805571,654.88,654.12,0.30575429]
[1749479178937,1.13805571,654.87,654.12,0.30575429]
[1749479179131,1.13805571,655.01,654.12,0.30575429]
[1749479179332,1.13805571,655.0,654.12,0.30575429]
[1749479179532,1.13805571,654.99,654.12,0.30575429]
[1749479179734,1.13805571,654.98,654.12,0.30575429]
[1749479179933,1.13805571,654.97,654.12,0.30575429]
[1749479180133,1.13805571,654.96,654.12,0.30575429]
[1749479180333,1.13805571,654.95,654.12,0.30575429]
[1749479180536,0.26583149,655.03,654.12,0.30575429]
[1749479180537,1.13805571,654.94,654.12,0.30575429]
[1749479180737,1.13805571,654.93,654.12,0.30575429]
[1749479180933,1.13805571,654.92,654.12,0.30575429]
[1749479181236,1.13805571,654.91,654.12,0.30575429]
[1749479181434,1.13805571,654.9,654.12,0.30575429]
[1749479181633,1.13805571,654.89,654.12,0.30575429]
[1749479181933,1.13805571,654.88,654.12,0.30575429]
[1749479182138,1.13805571,655.02,654.12,0.30575429]
[1749479182335,1.13805571,655.01,654.12,0.30575429]
[1749479182537,1.13805571,655.0,654.12,0.30575429]
[1749479182835,1.13805571,654.99,654.12,0.30575429]
[1749479183140,1.13805571,654.98,654.12,0.30575429]
[1749479183334,1.13805571,654.97,654.12,0.30575429]
[1749479183535,1.13805571,654.96,654.12,0.30575429]
[1749479183739,1.13805571,654.95,654.12,0.30575429]
[1749479184039,1.13805571,654.94,654.12,0.30575429]
[1749479184338,1.13805571,654.93,654.12,0.30575429]
[1749479184540,1.13805571,654.92,654.12,0.30575429]
[1749479184839,1.13805571,654.91,654.12,0.30575429]
[1749479185035,1.13805571,654.9,654.12,0.30575429]
[1749479185235,1.13805571,654.89,654.12,0.30575429]
[1749479185535,1.13805571,654.88,654.12,0.30575429]
[1749479185736,1.13805571,654.98,654.12,0.30575429]
[1749479186038,1.13805571,654.97,654.12,0.30575429]
[1749479186241,1.13805571,654.96,654.12,0.30575429]
[1749479186435,1.25706462,654.99,654.12,0.30575429]
[1749479186436,1.13805571,654.95,654.12,0.30575429]
[1749479186635,1.13805571,654.94,654.12,0.30575429]
[1749479186835,1.13805571,654.93,654.12,0.30575429]
[1749479187035,1.13805571,654.92,654.12,0.30575429]
[1749479187240,1.13805571,654.91,654.12,0.30575429]
[1749479187540,1.13805571,654.9,654.12,0.30575429]
[1749479187841,1.13805571,654.89,654.12,0.30575429]
[1749479188039,1.13805571,654.98,654.12,0.30575429]
[1749479188239,1.13805571,654.97,654.12,0.30575429]
[1749479188437,1.13805571,654.96,654.12,0.30575429]
[1749479188643,1.13805571,654.95,654.12,0.30575429]
[1749479188842,1.13805571,654.94,654.12,0.30575429]
[1749479189138,1.13805571,654.93,654.12,0.30575429]
[1749479189339,1.13805571,654.92,654.12,0.30575429]
[1749479189538,1.13805571,654.91,654.12,0.30575429]
[1749479189738,1.13805571,654.9,654.12,0.30575429]
[1749479189939,1.13805571,654.89,654.12,0.30575429]
[1749479190137,1.13805571,654.88,654.12,0.30575429]
[1749479190438,1.13805571,654.87,654.12,0.30575429]
[1749479190644,1.13805571,654.99,654.12,0.30575429]
[1749479190838,1.13805571,654.98,654.12,0.30575429]
[1749479191042,1.13805571,654.97,654.12,0.30575429]
[1749479191239,1.13805571,654.96,654.12,0.30575429]
[1749479191442,1.13805571,654.95,654.12,0.30575429]
[1749479191639,1.13805571,654.94,654.12,0.30575429]
[1749479191839,1.13805571,654.93,654.12,0.30575429]
[1749479192142,1.13805571,654.92,654.12,0.30575429]
[1749479192339,1.13805571,654.91,654.12,0.30575429]
[1749479192540,1.13805571,654.9,654.12,0.30575429]
[1749479192738,1.13805571,654.89,654.12,0.30575429]
[1749479192944,1.13805571,654.88,654.12,0.30575429]
[1749479193243,1.25737253,654.99,654.12,0.30575429]
[1749479193244,1.13805571,654.87,654.12,0.30575429]
[1749479193540,1.13805571,654.86,654.12,0.30575429]
[1749479193844,1.13805571,654.98,654.12,0.30575429]
[1749479194043,1.13805571,654.97,654.12,0.30575429]
[1749479194238,1.13805571,654.96,654.12,0.30575429]
[1749479194440,1.13805571,654.95,654.12,0.30575429]
[1749479194739,1.13805571,654.94,654.12,0.30575429]
[1749479194943,1.13805571,654.93,654.12,0.30575429]
[1749479195141,1.13805571,654.92,654.12,0.30575429]
[1749479195344,1.13805571,654.91,654.12,0.30575429]
[1749479195543,1.13805571,654.9,654.12,0.30575429]
[1749479195751,1.13805571,654.89,654.12,0.30575429]
[1749479195950,1.13805571,654.88,654.12,0.30575429]
[1749479196150,1.13805571,654.87,654.12,0.30575429]
[1749479196350,1.13805571,654.86,654.12,0.30575429]
[1749479196550,1.13805571,654.97,654.12,0.30575429]
[1749479196748,1.13805571,654.96,654.12,0.30575429]
[1749479196954,1.13805571,654.95,654.12,0.30575429]
[1749479197251,1.13805571,654.94,654.12,0.30575429]
[1749479197449,1.13805571,654.93,654.12,0.30575429]
[1749479197751,1.13805571,654.92,654.12,0.30575429]
[1749479197953,1.13805571,654.91,654.12,0.30575429]
[1749479198152,1.13805571,654.9,654.12,0.30575429]
[1749479198463,1.13805571,654.89,654.12,0.30575429]
[1749479198653,1.13805571,654.88,654.12,0.30575429]
[1749479198847,1.13805571,654.87,654.12,0.30575429]
[1749479199051,1.13805571,654.86,654.12,0.30575429]
[1749479199352,1.13805571,654.99,654.12,0.30575429]
[1749479199549,1.13805571,654.98,654.12,0.30575429]
[1749479199753,1.13805571,654.97,654.12,0.30575429]
[1749479199955,1.13805571,654.96,654.12,0.30575429]
[1749479200153,1.13805571,654.95,654.12,0.30575429]
[1749479200354,1.13805571,654.94,654.12,0.30575429]
[1749479200655,1.13805571,654.93,654.12,0.30575429]
[1749479200852,1.13805571,654.92,654.12,0.30575429]
[1749479201053,1.13805571,654.91,654.12,0.30575429]
[1749479201255,1.13805571,654.9,654.12,0.30575429]
[1749479201551,1.13805571,654.89,654.12,0.30575429]
[1749479201750,1.13805571,654.88,654.12,0.30575429]
[1749479201955,1.13805571,654.87,654.12,0.30575429]
[1749479202252,2.39663708,654.98,654.12,0.30575429]
[1749479202454,1.13805571,654.97,654.12,0.30575429]
[1749479202651,1.13805571,654.96,654.12,0.30575429]
[1749479202951,1.13805571,654.95,654.12,0.30575429]
[1749479203156,1.13805571,654.94,654.12,0.30575429]
[1749479203455,1.13805571,654.93,654.12,0.30575429]
[1749479203655,1.13805571,654.92,654.12,0.30575429]
[1749479203848,1.13805571,654.91,654.12,0.30575429]
[1749479204051,1.13805571,654.9,654.12,0.30575429]